fUSD/lending_fUSD_20260219
["ID","MTS","AMOUNT","RATE_DAILY","PERIOD"]
[406003611,1771519867453,-605.58173121,0.00043835,120]
[406003612,1771519867463,-500.0,0.00043835,120]
[406003613,1771519867473,-500.0,0.00043835,120]
[406003614,1771519867482,-262.73783647,0.00043835,120]
[406003615,1771519867491,-500.0,0.00043835,120]
[406003616,1771519867500,-391.88087883,0.00043835,120]
[406003617,1771519867510,-483.39256152,0.00043835,120]
[406003618,1771519867519,-500.0,0.00043835,120]
[406003619,1771519867529,-500.0,0.00043835,120]
[406003620,1771519867538,-454.86002091,0.00043835,120]
[406003621,1771519867548,-566.18486907,0.00043835,120]
[406003622,1771519867557,-500.0,0.00043835,120]
[406003623,1771519867568,-528.46041653,0.00043835,120]
[406003624,1771519867578,-500.0,0.00043835,120]
[406003625,1771519867587,-500.0,0.00043835,120]
[406003626,1771519867596,-500.0,0.00043835,120]
[406003627,1771519867606,-281.96148859,0.00043835,120]
[406003628,1771519867615,-500.0,0.00043835,120]
[406003629,1771519867624,-500.0,0.00043835,120]
[406003630,1771519867633,-500.0,0.00043835,120]
[406003631,1771519867643,-500.0,0.00043835,120]
[406003632,1771519867653,-224.40427052,0.00043835,120]
[406003633,1771519867663,-587.47911799,0.00043835,120]
[406003634,1771519867671,-500.0,0.00043835,120]
[406003635,1771519867682,-500.0,0.00043835,120]
[406003636,1771519867691,-254.09860802,0.00043835,120]
[406003637,1771519867700,-572.12818612,0.00043835,120]
[406003638,1771519867709,-500.0,0.00043835,120]
[406003639,1771519867718,-320.20399579,0.00043835,120]
[406003640,1771519867727,-500.0,0.00043835,120]
[406003641,1771519867737,-462.82112543,0.00043835,120]
[406003642,1771519867746,-500.0,0.00043835,120]
[406003643,1771519867755,-365.01534956,0.00043835,120]
[406003644,1771519867765,-500.0,0.00043835,120]
[406003645,1771519867774,-568.16337119,0.00043835,120]
[406003646,1771519867783,-500.0,0.00043835,120]
[406003647,1771519867794,-261.07823403,0.00043835,120]
[406003648,1771519867803,-500.0,0.00043835,120]
[406003649,1771519867812,-500.0,0.00043835,120]
[406003650,1771519867821,-297.61700526,0.00043835,120]
[406003651,1771519867830,-500.0,0.00043835,120]
[406003652,1771519867839,-238.19968584,0.00043835,120]
[406003653,1771519867849,-502.9181541,0.00043835,120]
[406003654,1771519867858,-534.51841743,0.00043835,120]
[406003655,1771519867867,-513.80114072,0.00043835,120]
[406003656,1771519867876,-500.0,0.00043835,120]
[406003657,1771519867886,-500.0,0.00043835,120]
[406003658,1771519867895,-500.0,0.00043835,120]
[406003659,1771519867904,-207.31362703,0.00043835,120]
[406003660,1771519867913,-513.0931868,0.00043835,120]
[406003661,1771519867922,-506.84506115,0.00043835,120]
[406003662,1771519867932,-511.69884695,0.00043835,120]
[406003663,1771519867941,-509.22043492,0.00043835,120]
[406003664,1771519867950,-512.88213012,0.00043835,120]
[406003665,1771519867959,-507.13003625,0.00043835,120]
[406003666,1771519867968,-500.0,0.00043835,120]
[406003667,1771519867977,-500.0,0.00043835,120]
[406003668,1771519867986,-500.0,0.00043835,120]
[406003669,1771519867995,-193.61686144,0.00043835,120]
[406003670,1771519868005,-509.70139423,0.00043835,120]
[406003671,1771519868014,-500.0,0.00043835,120]
[406003672,1771519868024,-500.0,0.00043835,120]
[406003673,1771519868034,-478.90708891,0.00043835,120]
[406003674,1771519868047,-517.09941267,0.00043835,120]
[406003675,1771519868057,-500.0,0.00043835,120]
[406003676,1771519868066,-500.0,0.00043835,120]
[406003677,1771519868075,-150.83156319,0.00043835,120]
[406003678,1771519868086,-506.87024057,0.00043835,120]
[406003679,1771519868096,-508.11185172,0.00043835,120]
[406003680,1771519868106,-500.0,0.00043835,120]
[406003681,1771519868115,-505.89828403,0.00043835,120]
[406003682,1771519868125,-500.0,0.00043835,120]
[406003683,1771519868134,-500.0,0.00043835,120]
[406003684,1771519868143,-500.0,0.00043835,120]
[406003685,1771519868153,-500.0,0.00043835,120]
[406003686,1771519868162,-274.11023643,0.00043835,120]
[406003687,1771519868171,-500.0,0.00043835,120]
[406003688,1771519868180,-500.0,0.00043835,120]
[406003689,1771519868190,-355.0,0.00043835,120]
[406003690,1771519868209,-508.44358095,0.00043835,120]
[406003691,1771519868221,-500.0,0.00043835,120]
[406003692,1771519868231,-500.0,0.00043835,120]
[406003693,1771519868241,-385.4458887,0.00043835,120]
[406003694,1771519868250,-632.20256165,0.00043835,120]
[406003695,1771519868260,-509.70076824,0.00043835,120]
[406003696,1771519868270,-507.3732215,0.00043835,120]
[406003697,1771519868279,-500.0,0.00043835,120]
[406003698,1771519868289,-509.2155027,0.00043835,120]
[406003699,1771519868298,-522.79790991,0.00043835,120]
[406003700,1771519868308,-504.22204997,0.00043835,120]
[406003701,1771519868317,-513.77605891,0.00043835,120]
[406003702,1771519868327,-649.09429932,0.00043835,120]
[406003703,1771519868336,-500.0,0.00043835,120]
[406003704,1771519868346,-184.42932841,0.00043835,120]
[406003705,1771519868355,-503.73426057,0.00043835,120]
[406003706,1771519868365,-500.0,0.00043835,120]
[406003707,1771519868374,-231.73428496,0.00043835,120]
[406003708,1771519868385,-511.73604378,0.00043835,120]
[406003709,1771519868395,-491.43152888,0.00043835,120]
[406003710,1771519868404,-515.83888868,0.00043835,120]
[406003711,1771519868414,-510.19919224,0.00043835,120]
[406003712,1771519868423,-526.09268847,0.00043835,120]
[406003713,1771519868433,-513.23827627,0.00043835,120]
[406003714,1771519868442,-506.16656104,0.00043835,120]
[406003715,1771519868451,-500.0,0.00043835,120]
[406003716,1771519868461,-500.0,0.00043835,120]
[406003717,1771519868470,-500.0,0.00043835,120]
[406003718,1771519868479,-165.16656856,0.00043835,120]
[406003719,1771519868489,-646.44909535,0.00043835,120]
[406003720,1771519868498,-515.47454744,0.00043835,120]
[406003721,1771519868508,-551.99258595,0.00043835,120]
[406003722,1771519868518,-503.2992383,0.00043835,120]
[406003723,1771519868528,-512.21123845,0.00043835,120]
[406003724,1771519868537,-500.0,0.00043835,120]
[406003725,1771519868546,-500.0,0.00043835,120]
[406003726,1771519868555,-313.92,0.00043835,120]
[406003727,1771519868565,-505.42609103,0.00043835,120]
[406003728,1771519868573,-514.02567295,0.00043835,120]
[406003729,1771519868582,-500.0,0.00043835,120]
[406003730,1771519868592,-584.03093859,0.00043835,120]
[406003731,1771519868601,-500.2193912,0.00043835,120]
[406003732,1771519868610,-500.0,0.00043835,120]
[406003733,1771519868619,-477.2,0.00043835,120]
[406003734,1771519868628,-515.62576605,0.00043835,120]
[406003735,1771519868638,-579.50407442,0.00043835,120]
[406003736,1771519868647,-512.87232241,0.00043835,120]
[406003737,1771519868657,-516.25728051,0.00043835,120]
[406003738,1771519868667,-500.0,0.00043835,120]
[406003739,1771519868676,-346.73560358,0.00043835,120]
[406003740,1771519868687,-510.79010838,0.00043835,120]
[406003741,1771519868697,-506.85430362,0.00043835,120]
[406003742,1771519868707,-500.0,0.00043835,120]
[406003743,1771519868716,-500.0,0.00043835,120]
[406003744,1771519868726,-237.88906805,0.00043835,120]
[406003745,1771519868736,-515.78646004,0.00043835,120]
[406003746,1771519868746,-505.91648789,0.00043835,120]
[406003747,1771519868755,-500.0,0.00043835,120]
[406003748,1771519868765,-500.0,0.00043835,120]
[406003749,1771519868774,-500.0,0.00043835,120]
[406003750,1771519868783,-546.18837375,0.00043835,120]
[406003751,1771519868793,-535.66181927,0.00043835,120]
[406003752,1771519868802,-500.0,0.00043835,120]
[406003753,1771519868811,-510.97315328,0.00043835,120]
[406003754,1771519868820,-509.57944922,0.00043835,120]
[406003755,1771519868830,-564.53,0.00043835,120]
[406003756,1771519868839,-505.89626821,0.00043835,120]
[406003757,1771519868849,-509.57226118,0.00043835,120]
[406003758,1771519868858,-617.08892541,0.00043835,120]
[406003759,1771519868867,-500.0,0.00043835,120]
[406003760,1771519868877,-500.0,0.00043835,120]
[406003761,1771519868887,-500.0,0.00043835,120]
[406003762,1771519869033,-386.74167166,0.00043835,120]
[406003763,1771519869047,-504.10373602,0.00043835,120]
[406003764,1771519869057,-500.0,0.00043835,120]
[406003765,1771519869067,-505.14168521,0.00043835,120]
[406003766,1771519869078,-510.01296696,0.00043835,120]
[406003767,1771519869087,-500.0,0.00043835,120]
[406003768,1771519869101,-500.0,0.00043835,120]
[406003769,1771519869112,-500.0,0.00043835,120]
[406003770,1771519869123,-523.2340589,0.00043835,120]
[406003771,1771519869133,-509.69,0.00043835,120]
[406003772,1771519869144,-554.87172917,0.00043835,120]
[406003773,1771519869154,-506.32483252,0.00043835,120]
[406003774,1771519869164,-500.0,0.00043835,120]
[406003775,1771519869174,-210.31002498,0.00043835,120]
[406003776,1771519869183,-510.82578765,0.00043835,120]
[406003777,1771519869194,-522.04778538,0.00043835,120]
[406003778,1771519869204,-500.0,0.00043835,120]
[406003779,1771519869214,-500.0,0.00043835,120]
[406003780,1771519869223,-500.0,0.00043835,120]
[406003781,1771519869232,-515.37218944,0.00043835,120]
[406003782,1771519869241,-500.0,0.00043835,120]
[406003783,1771519869251,-500.0,0.00043835,120]
[406003784,1771519869261,-221.94432005,0.00043835,120]
[406003785,1771519869270,-520.84088242,0.00043835,120]
[406003786,1771519869279,-500.0,0.00043835,120]
[406003787,1771519869289,-197.33168838,0.00043835,120]
[406003788,1771519869298,-500.0,0.00043835,120]
[406003789,1771519869308,-273.90219387,0.00043835,120]
[406003790,1771519869317,-500.0,0.00043835,120]
[406003791,1771519869327,-166.77936949,0.00043835,120]
[406003792,1771519869337,-506.78349496,0.00043835,120]
[406003793,1771519869346,-500.0,0.00043835,120]
[406003794,1771519869355,-500.0,0.00043835,120]
[406003795,1771519869364,-207.59592823,0.00043835,120]
[406003796,1771519869375,-604.59353509,0.00043835,120]
[406003797,1771519869385,-510.52593479,0.00043835,120]
[406003798,1771519869395,-519.95955577,0.00043835,120]
[406003799,1771519869406,-513.21685896,0.00043835,120]
[406003800,1771519869416,-500.0,0.00043835,120]
[406003801,1771519869426,-509.51418907,0.00043835,120]
[406003802,1771519869436,-508.37152598,0.00043835,120]
[406003803,1771519869447,-500.0,0.00043835,120]
[406003804,1771519869457,-500.0,0.00043835,120]
[406003805,1771519869467,-325.53127905,0.00043835,120]
[406003806,1771519869477,-511.22263151,0.00043835,120]
[406003807,1771519869487,-505.52963016,0.00043835,120]
[406003808,1771519869497,-516.03937095,0.00043835,120]
[406003809,1771519869506,-506.6311313,0.00043835,120]
[406003810,1771519869516,-517.99480854,0.00043835,120]
[406003811,1771519869525,-500.0,0.00043835,120]
[406003812,1771519869534,-432.06120332,0.00043835,120]
[406003813,1771519869545,-508.29216073,0.00043835,120]
[406003814,1771519869555,-500.0,0.00043835,120]
[406003815,1771519869564,-348.3180909,0.00043835,120]
[406003816,1771519869573,-502.99126746,0.00043835,120]
[406003817,1771519869583,-512.06980842,0.00043835,120]
[406003818,1771519869592,-514.69399588,0.00043835,60]
[406003819,1771519869603,-507.26057216,0.00043835,120]
[406003820,1771519869614,-500.0,0.00043835,120]
[406003821,1771519869624,-419.78093014,0.00043835,120]
[406003822,1771519869635,-508.07307814,0.00043835,120]
[406003823,1771519869645,-514.85891333,0.00043835,120]
[406003824,1771519869655,-500.0,0.00043835,120]
[406003825,1771519869668,-506.80267442,0.00043835,120]
[406003826,1771519869678,-500.0,0.00043835,120]
[406003827,1771519869687,-500.0,0.00043835,120]
[406003828,1771519869696,-575.54277166,0.00043835,120]
[406003829,1771519869707,-517.0740521,0.00043835,120]
[406003830,1771519869716,-511.83276354,0.00043835,120]
[406003831,1771519869726,-507.04234707,0.00043835,120]
[406003832,1771519869736,-592.5310544,0.00043835,120]
[406003833,1771519869746,-508.71952419,0.00043835,120]
[406003834,1771519869755,-500.0,0.00043835,120]
[406003835,1771519869764,-330.1340744,0.00043835,120]
[406003836,1771519869774,-510.33546829,0.00043835,120]
[406003837,1771519869783,-606.89831196,0.00043835,120]
[406003838,1771519869794,-502.40639092,0.00043835,120]
[406003839,1771519869804,-346.84486217,0.00043835,120]
[406003840,1771519869813,-576.29034193,0.00043835,120]
[406003841,1771519869823,-506.39001142,0.00043835,120]
[406003842,1771519869834,-531.49019958,0.00043835,120]
[406003843,1771519869843,-504.85499714,0.00043835,120]
[406003844,1771519869854,-509.78979179,0.00043835,120]
[406003845,1771519869863,-500.0,0.00043835,120]
[406003846,1771519869874,-614.82939657,0.00043835,120]
[406003847,1771519869885,-546.47218627,0.00043835,120]
[406003848,1771519869895,-444.50257273,0.00043835,120]
[406003849,1771519869904,-500.0,0.00043835,120]
[406003850,1771519869914,-504.81727005,0.00043835,120]
[406003851,1771519869923,-505.10467153,0.00043835,120]
[406003852,1771519869933,-500.0,0.00043835,120]
[406003853,1771519869942,-532.43,0.00043835,120]
[406003854,1771519869951,-500.0,0.00043835,120]
[406003855,1771519869961,-500.0,0.00043835,120]
[406003856,1771519869970,-603.07012119,0.00043835,120]
[406003857,1771519869980,-517.44975864,0.00043835,120]
[406003858,1771519869990,-500.0,0.00043835,120]
[406003859,1771519869999,-485.51034488,0.00043835,120]
[406003860,1771519870009,-505.24155864,0.00043835,120]
[406003861,1771519870018,-512.78930471,0.00043835,120]
[406003862,1771519870028,-500.0,0.00043835,120]
[406003863,1771519870041,-505.10905448,0.00043835,120]
[406003864,1771519870050,-509.80685789,0.00043835,120]
[406003865,1771519870060,-500.0,0.00043835,120]
[406003866,1771519870069,-307.21692474,0.00043835,120]
[406003867,1771519870079,-500.0,0.00043835,120]
[406003868,1771519870089,-500.0,0.00043835,120]
[406003869,1771519870098,-500.0,0.00043835,120]
[406003870,1771519870109,-511.07329812,0.00043835,120]
[406003871,1771519870118,-478.24226668,0.00043835,120]
[406003872,1771519870128,-641.16432871,0.00043835,120]
[406003873,1771519870138,-500.0,0.00043835,120]
[406003874,1771519870148,-500.0,0.00043835,120]
[406003875,1771519870158,-500.0,0.00043835,120]
[406003876,1771519870167,-185.11334023,0.00043835,120]
[406003877,1771519870177,-508.7690036,0.00043835,120]
[406003878,1771519870186,-500.06285415,0.00043835,120]
[406003879,1771519870196,-610.95924788,0.00043835,120]
[406003880,1771519870205,-581.16045832,0.00043835,120]
[406003881,1771519870215,-500.0,0.00043835,120]
[406003882,1771519870224,-501.63925452,0.00043835,120]
[406003883,1771519870234,-509.62773499,0.00043835,120]
[406003884,1771519870243,-500.0,0.00043835,120]
[406003885,1771519870252,-500.0,0.00043835,120]
[406003886,1771519870262,-158.22681832,0.00043835,120]
[406003887,1771519870271,-510.03204161,0.00043835,120]
[406003888,1771519870281,-509.29950336,0.00043835,120]
[406003889,1771519870291,-497.10266168,0.00043835,120]
[406003890,1771519870300,-509.89056603,0.00043835,120]
[406003891,1771519870309,-500.0,0.00043835,120]
[406003892,1771519870318,-506.34287389,0.00043835,120]
[406003893,1771519870328,-506.87333229,0.00043835,120]
[406003894,1771519870339,-583.33,0.00043835,120]
[406003895,1771519870349,-570.65863284,0.00043835,120]
[406003896,1771519870358,-500.0,0.00043835,120]
[406003897,1771519870368,-502.81916421,0.00043835,120]
[406003898,1771519870379,-500.0,0.00043835,120]
[406003899,1771519870390,-200.08129362,0.00043835,120]
[406003900,1771519870400,-508.23569826,0.00043835,120]
[406003901,1771519870411,-491.5364727,0.00043835,120]
[406003902,1771519870420,-386.48815076,0.00043835,120]
[406003903,1771519870430,-500.0,0.00043835,120]
[406003904,1771519870440,-500.0,0.00043835,120]
[406003905,1771519870451,-500.0,0.00043835,120]
[406003906,1771519870460,-233.30694934,0.00043835,120]
[406003907,1771519870470,-583.18958661,0.00043835,120]
[406003908,1771519870480,-188.89298756,0.00043835,120]
[406003909,1771519870490,-500.0,0.00043835,120]
[406003910,1771519870500,-509.6021767,0.00043835,120]
[406003911,1771519870510,-330.22964721,0.00043835,120]
[406003912,1771519870520,-503.78004924,0.00043835,120]
[406003913,1771519870529,-500.0,0.00043835,120]
[406003914,1771519870539,-500.0,0.00043835,120]
[406003915,1771519870549,-500.0,0.00043835,120]
[406003916,1771519870558,-500.0,0.00043835,120]
[406003917,1771519870568,-500.0,0.00043835,120]
[406003918,1771519870577,-500.0,0.00043835,120]
[406003919,1771519870586,-634.70568603,0.00043835,120]
[406003920,1771519870595,-500.0,0.00043835,120]
[406003921,1771519870604,-299.62135891,0.00043835,120]
[406003922,1771519870614,-540.71050534,0.00043835,120]
[406003923,1771519870623,-500.0,0.00043835,120]
[406003924,1771519870632,-568.24700868,0.00043835,120]
[406003925,1771519870642,-504.77577551,0.00043835,120]
[406003926,1771519870651,-500.0,0.00043835,60]
[406003927,1771519870661,-500.0,0.00043835,60]
[406003928,1771519870670,-245.63701078,0.00043835,60]
[406003929,1771519870679,-500.0,0.00043835,120]
[406003930,1771519870688,-500.0,0.00043835,120]
[406003931,1771519870698,-500.0,0.00043835,120]
[406003932,1771519870707,-500.0,0.00043835,120]
[406003933,1771519870717,-532.3385794,0.00043835,120]
[406003934,1771519870726,-181.82,0.00043835,120]
[406003935,1771519870736,-500.0,0.00043835,120]
[406003936,1771519870745,-417.24,0.00043835,120]
[406003937,1771519870756,-500.0,0.00043835,120]
[406003938,1771519870767,-534.48830948,0.00043835,120]
[406003939,1771519870776,-500.0,0.00043835,120]
[406003940,1771519870785,-500.0,0.00043835,120]
[406003941,1771519870795,-500.0,0.00043835,120]
[406003942,1771519870804,-500.0,0.00043835,120]
[406003943,1771519870813,-383.51385521,0.00043835,120]
[406003944,1771519870823,-500.0,0.00043835,120]
[406003945,1771519870833,-405.50891163,0.00043835,120]
[406003946,1771519870842,-500.0,0.00043835,120]
[406003947,1771519870851,-500.0,0.00043835,120]
[406003948,1771519870860,-242.91,0.00043835,120]
[406003949,1771519870870,-503.62682109,0.00043835,120]
[406003950,1771519870879,-500.0,0.00043835,120]
[406003951,1771519870888,-500.0,0.00043835,120]
[406003952,1771519870897,-561.41613114,0.00043835,120]
[406003953,1771519870907,-323.6906663,0.00043835,120]
[406003954,1771519870916,-508.65011641,0.00043835,120]
[406003955,1771519870925,-500.0,0.00043835,90]
[406003956,1771519870935,-500.0,0.00043835,90]
[406003957,1771519870944,-209.32,0.00043835,90]
[406003958,1771519870953,-517.69829964,0.00043835,120]
[406003959,1771519870962,-584.56531471,0.00043835,120]
[406003960,1771519870971,-508.41311562,0.00043835,120]
[406003961,1771519870980,-500.0,0.00043835,120]
[406003962,1771519870990,-567.05038321,0.00043835,120]
[406003963,1771519871113,-513.57443971,0.00043835,120]
[406003964,1771519871123,-566.90452084,0.00043835,120]
[406003965,1771519871132,-270.34918973,0.00043835,120]
[406003966,1771519871142,-509.26494871,0.00043835,120]
[406003967,1771519871151,-502.8131148,0.00043835,120]
[406003968,1771519871161,-500.0,0.00043835,120]
[406003969,1771519871170,-636.62471948,0.00043835,120]
[406003970,1771519871180,-527.64981362,0.00043835,120]
[406003971,1771519871191,-513.90280336,0.00043835,120]
[406003972,1771519871201,-500.0,0.00043835,120]
[406003973,1771519871211,-571.84073085,0.00043835,120]
[406003974,1771519871220,-492.34280778,0.00043835,120]
[406003975,1771519871230,-526.69715865,0.00043835,120]
[406003976,1771519871239,-625.08059491,0.00043835,120]
[406003977,1771519871250,-513.01941582,0.00043835,120]
[406003978,1771519871259,-500.0,0.00043835,120]
[406003979,1771519871268,-275.4,0.00043835,120]
[406003980,1771519871277,-522.52271159,0.00043835,120]
[406003981,1771519871288,-510.10657352,0.00043835,120]
[406003982,1771519871298,-505.43502667,0.00043835,120]
[406003983,1771519871307,-469.78983966,0.00043835,120]
[406003984,1771519871317,-568.19618979,0.00043835,120]
[406003985,1771519871328,-503.63005432,0.00043835,120]
[406003986,1771519871337,-500.0,0.00043835,120]
[406003987,1771519871346,-500.0,0.00043835,120]
[406003988,1771519871356,-494.91181683,0.00043835,120]
[406003989,1771519871365,-522.11893393,0.00043835,120]
[406003990,1771519871374,-500.0,0.00043835,120]
[406003991,1771519871383,-500.0,0.00043835,120]
[406003992,1771519871392,-500.0,0.00043835,120]
[406003993,1771519871402,-261.6446122,0.00043835,120]
[406003994,1771519871411,-508.42870073,0.00043835,120]
[406003995,1771519871421,-500.0,0.00043835,120]
[406003996,1771519871432,-356.19,0.00043835,120]
[406003997,1771519871442,-519.10751858,0.00043835,120]
[406003998,1771519871452,-500.0,0.00043835,120]
[406003999,1771519871462,-500.0,0.00043835,120]
[406004000,1771519871471,-500.0,0.00043835,120]
[406004001,1771519871481,-162.29,0.00043835,120]
[406004002,1771519871491,-505.72476422,0.00043835,120]
[406004003,1771519871501,-500.45240231,0.00043835,120]
[406004004,1771519871511,-502.79936101,0.00043835,120]
[406004005,1771519871521,-573.23782276,0.00043835,120]
[406004006,1771519871530,-505.98621569,0.00043835,120]
[406004007,1771519871539,-508.08705769,0.00043835,120]
[406004008,1771519871550,-513.30226564,0.00043835,120]
[406004009,1771519871559,-163.66320389,0.00043835,120]
[406004010,1771519871570,-514.72038037,0.00043835,120]
[406004011,1771519871579,-508.58637622,0.00043835,120]
[406004012,1771519871588,-500.0,0.00043835,120]
[406004013,1771519871599,-254.30422897,0.00043835,120]
[406004014,1771519871610,-505.95414527,0.00043835,120]
[406004015,1771519871619,-502.4266985,0.00043835,120]
[406004016,1771519871630,-632.95457333,0.00043835,120]
[406004017,1771519871640,-505.41256086,0.00043835,120]
[406004018,1771519871649,-500.0,0.00043835,120]
[406004019,1771519871659,-364.93,0.00043835,120]
[406004020,1771519871668,-507.05210357,0.00043835,120]
[406004021,1771519871679,-500.0,0.00043835,120]
[406004022,1771519871689,-500.0,0.00043835,120]
[406004023,1771519871699,-326.96789103,0.00043835,120]
[406004024,1771519871708,-500.0,0.00043835,120]
[406004025,1771519871718,-533.94038221,0.00043835,120]
[406004026,1771519871727,-500.0,0.00043835,120]
[406004027,1771519871739,-500.0,0.00043835,120]
[406004028,1771519871748,-500.0,0.00043835,120]
[406004029,1771519871757,-229.30686906,0.00043835,120]
[406004030,1771519871766,-501.97005828,0.00043835,120]
[406004031,1771519871775,-516.92579137,0.00043835,120]
[406004032,1771519871785,-502.18990865,0.00043835,120]
[406004033,1771519871794,-500.0,0.00043835,120]
[406004034,1771519871803,-500.0,0.00043835,120]
[406004035,1771519871812,-446.7,0.00043835,120]
[406004036,1771519871821,-500.0,0.00043835,120]
[406004037,1771519871830,-503.53846923,0.00043835,120]
[406004038,1771519871839,-506.63008539,0.00043835,120]
[406004039,1771519871848,-506.35177634,0.00043835,120]
[406004040,1771519871857,-503.7334432,0.00043835,120]
[406004041,1771519871867,-503.32791376,0.00043835,120]
[406004042,1771519871877,-505.79817794,0.00043835,120]
[406004043,1771519871886,-621.87601101,0.00043835,120]
[406004044,1771519871895,-506.75120399,0.00043835,120]
[406004045,1771519871904,-500.0,0.00043835,120]
[406004046,1771519871916,-345.67935979,0.00043835,120]
[406004047,1771519871926,-503.62631362,0.00043835,120]
[406004048,1771519871935,-500.0,0.00043835,120]
[406004049,1771519871945,-500.0,0.00043835,120]
[406004050,1771519871954,-500.0,0.00043835,120]
[406004051,1771519871963,-500.0,0.00043835,120]
[406004052,1771519871973,-226.1904562,0.00043835,120]
[406004053,1771519871983,-541.07029103,0.00043835,7]
[406004054,1771519871993,-500.0,0.00043835,120]
[406004055,1771519872003,-565.7016653,0.00043835,120]
[406004056,1771519872015,-567.82057182,0.00043835,120]
[406004057,1771519872024,-504.25263511,0.00043835,120]
[406004058,1771519872037,-500.0,0.00043835,120]
[406004059,1771519872048,-501.74559093,0.00043835,120]
[406004060,1771519872057,-509.89474835,0.00043835,120]
[406004061,1771519872068,-504.11320754,0.00043835,120]
[406004062,1771519872078,-506.58072702,0.00043835,120]
[406004063,1771519872087,-547.26403898,0.00043835,120]
[406004064,1771519872096,-505.93520655,0.00043835,120]
[406004065,1771519872105,-604.21973185,0.00043835,120]
[406004066,1771519872115,-500.0,0.00043835,120]
[406004067,1771519872124,-477.98,0.00043835,120]
[406004068,1771519872133,-510.52832272,0.00043835,120]
[406004069,1771519872142,-500.0,0.00043835,120]
[406004070,1771519872152,-500.0,0.00043835,120]
[406004071,1771519872162,-500.0,0.00043835,120]
[406004072,1771519872172,-574.19369247,0.00043835,120]
[406004073,1771519872181,-502.30684259,0.00043835,120]
[406004074,1771519872191,-504.18964855,0.00043835,120]
[406004075,1771519872201,-497.40413178,0.00043835,120]
[406004076,1771519872210,-631.99018779,0.00043835,120]
[406004077,1771519872219,-507.92578523,0.00043835,120]
[406004078,1771519872229,-500.0,0.00043835,120]
[406004079,1771519872238,-500.0,0.00043835,120]
[406004080,1771519872247,-500.0,0.00043835,120]
[406004081,1771519872257,-362.02,0.00043835,120]
[406004082,1771519872267,-506.23730205,0.00043835,120]
[406004083,1771519872276,-504.06387047,0.00043835,120]
[406004084,1771519872286,-500.0,0.00043835,120]
[406004085,1771519872295,-500.0,0.00043835,120]
[406004086,1771519872304,-629.49,0.00043835,120]
[406004087,1771519872313,-570.21199589,0.00043835,120]
[406004088,1771519872323,-500.0,0.00043835,120]
[406004089,1771519872333,-626.02791581,0.00043835,120]
[406004090,1771519872343,-497.46966558,0.00043835,120]
[406004091,1771519872351,-505.08223275,0.00043835,120]
[406004092,1771519872361,-386.89691364,0.00043835,120]
[406004093,1771519872371,-506.15817993,0.00043835,120]
[406004094,1771519872381,-500.0,0.00043835,120]
[406004095,1771519872393,-507.13081918,0.00043835,120]
[406004096,1771519872402,-500.0,0.00043835,120]
[406004097,1771519872412,-264.54885883,0.00043835,120]
[406004098,1771519872421,-505.1924461,0.00043835,120]
[406004099,1771519872431,-165.58033987,0.00043835,120]
[406004100,1771519872441,-500.0,0.00043835,120]
[406004101,1771519872448,-502.61816258,0.00043835,120]
[406004102,1771519872457,-515.0738113,0.00043835,120]
[406004103,1771519872467,-506.16003384,0.00043835,120]
[406004104,1771519872476,-485.1915464,0.00043835,120]
[406004105,1771519872486,-648.08842718,0.00043835,120]
[406004106,1771519872502,-500.0,0.00043835,120]
[406004107,1771519872511,-502.83870273,0.00043835,120]
[406004108,1771519872521,-505.04236033,0.00043835,120]
[406004109,1771519872530,-332.82929466,0.00043835,120]
[406004110,1771519872539,-500.0,0.00043835,120]